Cogmind - Beta 9.4 *** ADVENTURER MODE // 2020.08.05 @ 20:54:01 Player: Scyralis Result: Self-destructed Performance ------------- Evolutions (3) 1500 Regions Visited (5) 1000 Robots Destroyed (155) 775 Value Destroyed (3875) 3875 Prototype IDs (3) 60 Alien Tech Used (0) 0 Bonus (669) 669 TOTAL SCORE: 7879 Bonus ------- High Alert Combat Kills 473 Follower Combat Kills 257 Friendly Fire -61 Cogmind --------- Core Integrity 636/700 Matter 382/500 Energy 229/290 System Corruption 3% Temperature Cool (0) Movement Treading (160) Location -7/Lower Caves Parts ------- > --- POWER (1) -------- Improved Deuterium Engine > --- PROPULSION (2) --- Light Treads Improved Treads > --- UTILITY (7) ------ Coolant Injector High-capacity Matter Pod Advanced Terrain Scanner Advanced Terrain Scan Processor Transmission Jammer Hardened Medium Armor Plating > --- WEAPON (3) ------- Enhanced Autogun Molecular Deconstructor > --- INVENTORY (4) ---- Shock Absorption System Advanced Assault Cannon Gauss Cannon Improved Grenade Launcher Peak State ------------ > --- POWER ------------ Improved Deuterium Engine > --- PROPULSION ------- Light Treads Improved Treads > --- UTILITY ---------- Coolant Injector High-capacity Matter Pod Advanced Terrain Scanner Advanced Terrain Scan Processor Transmission Jammer Hardened Medium Armor Plating Tractor Beam > --- WEAPON ----------- Enhanced Autogun Molecular Deconstructor > --- INVENTORY -------- Shock Absorption System Advanced Assault Cannon Improved Grenade Launcher [Rating: 49] Favorites ----------- Power Heavy Ion Engine Engine Heavy Ion Engine Propulsion Improved Treads Treads Improved Treads Utility High-capacity Matter Pod Device Tractor Beam Storage High-capacity Matter Pod Processor Advanced Visual Processing Unit Protection Improved Light Armor Plating Weapon Flak Gun Ballistic Gun Flak Gun Ballistic Cannon Light Cannon Launcher Mini Grenade Launcher Special Weapon Molecular Deconstructor Build | -11 -10 -9 -8 -7 -7 ------- Run | Scr Mat Mat Mat Fac Low Slots Evolved 6 | . . 2 2 2 . Power . | . . . . . . Propulsion . | . . . . . . Utility 5 | . . 2 1 2 . Weapon 1 | . . . 1 . . Parts Attached 49 | 6 5 6 17 14 1 Power 3 | 1 . 1 . 1 . Engine 3 | 1 . 1 . 1 . Core . | . . . . . . Reactor . | . . . . . . Propulsion 8 | 2 2 1 2 1 . Treads 8 | 2 2 1 2 1 . Leg . | . . . . . . Wheel . | . . . . . . Hover . | . . . . . . Flight . | . . . . . . Utility 19 | 1 1 3 8 6 . Device 13 | 1 . 1 7 4 . Storage 1 | . 1 . . . . Processor 3 | . . 1 . 2 . Hackware . | . . . . . . Protection 2 | . . 1 1 . . Artifact . | . . . . . . Weapon 19 | 2 2 1 7 6 1 Energy Gun . | . . . . . . Energy Cannon . | . . . . . . Ballistic Gun 10 | 2 . 1 6 1 . Ballistic Cannon 5 | . 1 . . 4 . Launcher 3 | . 1 . 1 1 . Special Weapon 1 | . . . . . 1 Impact Weapon . | . . . . . . Slashing Weapon . | . . . . . . Piercing Weapon . | . . . . . . Special Melee Weapon . | . . . . . . Unidentified Prototypes 3 | . . 1 . 1 1 Parts Lost 5 | . . 1 3 . 1 Power . | . . . . . . Propulsion 1 | . . . 1 . . Utility 4 | . . 1 2 . 1 Weapon . | . . . . . . Highest Loss Streak 1 | . . 1 1 . 1 Average Slot Usage (%) 97 | . 96 97 97 95 93 Engine 9 | . 14 11 9 7 7 Treads 18 | . 28 22 17 15 15 Device 18 | . 14 8 20 20 30 Storage 9 | . 11 11 9 7 7 Processor 9 | . . 10 9 13 7 Protection 6 | . . 10 5 7 7 Ballistic Gun 17 | . 17 11 22 15 7 Ballistic Cannon 4 | . 8 11 1 6 3 Launcher 1 | . 1 . 3 . . Naked Turns . | . . . . . . Heaviest Build 43 | 9 15 22 33 43 43 Greatest Support 46 | 40 46 46 46 43 43 Greatest Overweight (x) 1 | . . . 1 . . Average Overweight (x) . | . . . . . . Largest Inventory Capacity 4 | 4 4 4 4 4 4 Average Capacity 4 | 4 4 4 4 4 4 Most Carried 4 | 4 3 4 4 3 4 Average Carried 2 | . . 2 3 1 3 Final Capacity 4 | 4 4 4 4 4 4 Final Carried 4 | . 1 3 4 2 4 Class Distribution -------------------- 44% | Mutant 30% | Tank 22% | Skirmisher Dominant Class ---------------- Mutant | -10/Materials Mutant | -9/Materials Tank | -8/Materials Skirmisher | -7/Factory Skirmisher | -7/Lower Caves Resources | -11 -10 -9 -8 -7 -7 ----------- Run | Scr Mat Mat Mat Fac Low Matter Collected 3447 | 304 358 609 1355 821 . Remotely 2374 | 163 358 421 1071 361 . Salvage Created 5640 | 106 341 1306 2687 1200 . Parts 302 | 10 20 66 151 55 . Haulers Intercepted 8 | . 2 2 4 . . Recyclers Shooed 8 | . . 1 5 2 . Parts Field Recycled . | . . . . . . Retrieved Matter . | . . . . . . Parts Self-Destructed . | . . . . . . Prevented . | . . . . . . Kills | -11 -10 -9 -8 -7 -7 ------- Run | Scr Mat Mat Mat Fac Low Combat Hostiles Destroyed 87 | . 4 22 36 25 . Guns 59 | . 3 10 31 15 . Cannons 18 | . 1 12 2 3 . AOE 10 | . . . 3 7 . Classes Destroyed 14 | 2 5 4 2 1 . Worker 13 | . 1 3 7 2 . Builder 9 | . . 1 6 2 . Tunneler 10 | 3 1 2 4 . . Hauler 8 | . 2 2 4 . . Recycler 20 | 1 1 5 10 3 . Mechanic 1 | . . 1 . . . Operator 2 | . . . 2 . . Watcher 5 | . 1 2 2 . . Swarmer 21 | . 2 4 11 4 . Grunt 50 | . 2 14 19 15 . Brawler 2 | . . 2 . . . Duelist 3 | . . . 1 2 . Protector 1 | . . . . 1 . Sentry 10 | . . 2 5 3 . Best Kill Streak 15 | 2 10 13 15 7 . Combat Bots Only 11 | . 2 5 11 5 . Max Kills in Single Turn 3 | 1 1 2 3 3 . Gunslinging 1 | . . . 1 . . Exploded 2 | . . . 2 2 . Melee . | . . . . . . Uniques/NPCs Destroyed . | . . . . . . Combat | -11 -10 -9 -8 -7 -7 -------- Run | Scr Mat Mat Mat Fac Low Damage Taken 2126 | . 25 632 525 735 209 Core 169 | . . 48 57 49 15 Absorbed by Shields 133 | . . . 133 . . Core Remaining (%) 94 | 100 100 88 89 . . Volleys Fired 278 | 11 19 77 114 54 3 Largest 3 | 2 2 2 3 3 3 Hottest 121 | 40 55 58 88 121 121 Shots Fired 662 | 22 38 154 284 157 7 Gun 472 | 22 19 77 255 96 3 Cannon 182 | . 19 77 27 57 2 Launcher 6 | . . . 2 4 . Special 2 | . . . . . 2 Kinetic 654 | 22 38 154 282 153 5 Thermal . | . . . . . . Explosive 6 | . . . 2 4 . Electromagnetic . | . . . . . . Robot Hit Streak 33 | 14 17 33 26 24 1 Robot Miss Streak 5 | 1 2 2 5 4 2 Penetration Max 1 | . . . . 1 . Secondary Targets 6 | . . . 6 . . Max Gunslinging Chain 1 | . . . 1 . . Shots Hit Robots 478 | 17 26 129 213 92 1 Core Hits 311 | 5 13 51 158 83 1 Critical Hits 3 | 1 2 . . . . Critical Kills . | . . . . . . Critical Parts Destroyed 3 | 1 2 . . . . Melee Attacks . | . . . . . . Impact . | . . . . . . Slashing . | . . . . . . Piercing . | . . . . . . Sneak Attacks . | . . . . . . Combat Hostiles . | . . . . . . Follow-up Attacks . | . . . . . . Damage Inflicted 10332 | 181 385 2146 4076 3466 78 Guns 6312 | 181 240 990 3495 1389 17 Cannons 2419 | . 134 1155 374 695 61 Explosions 1588 | . . . 207 1381 . Melee . | . . . . . . Ramming 13 | . 11 1 . 1 . Kinetic 8731 | 181 374 2145 3869 2084 78 Thermal 855 | . . . . 855 . Explosive 733 | . . . 207 526 . Electromagnetic . | . . . . . . Impact . | . . . . . . Slashing . | . . . . . . Piercing . | . . . . . . Highest Corruption 2 | . . . 1 1 2 Average Corruption 1 | . . . 1 1 1 Corruption Purged . | . . . . . . Effects 1 | . . . . . 1 Message Errors 1 | . . . . . 1 Overload Shots . | . . . . . . Overflow Damage 199 | . . 1 . 178 20 Projectiles 22 | . . 1 . 1 20 Explosions 177 | . . . . 177 . Melee . | . . . . . . Knockbacks 22 | . 1 7 2 11 1 Impact . | . . . . . . Kinetic 22 | . 1 7 2 11 1 Secondary . | . . . . . . Self-Inflicted Damage 143 | . . . 32 111 . Shots 3 | . . . 1 2 . Rammed 3 | . 1 1 . 1 . Targets Rammed 3 | . 1 1 . 1 . Kicked . | . . . . . . Crushed . | . . . . . . Highest Temperature 312 | . 4 54 252 312 76 Average Temperature 64 | . 3 18 35 113 43 Received Heat Transfer 856 | . 12 342 274 228 . Effects 4 | . . . . 4 . Energy Bleed 1 | . . . . 1 . Interference 2 | . . . . 2 . Short Circuit 1 | . . . . 1 . Siege Activations . | . . . . . . Robots Corrupted . | . . . . . . Combat Hostiles . | . . . . . . Parts Fried . | . . . . . . Impact Corruptions . | . . . . . . Robots Melted . | . . . . . . Combat Hostiles . | . . . . . . Parts Melted . | . . . . . . Heat Transferred 500 | . . . . 500 . Parts Sabotaged . | . . . . . . Parts Stolen . | . . . . . . Parts Stripped . | . . . . . . Power Chain Reactions . | . . . . . . Missiles Intercepted . | . . . . . . Alert | -11 -10 -9 -8 -7 -7 ------- Run | Scr Mat Mat Mat Fac Low Peak Influence 1021 | 20 162 520 509 1021 . Average Influence 322 | 8 75 337 254 585 . Maximum Alert Level 3 | . . 2 2 3 . Low Security (%) 35 | 100 100 23 30 28 . Level 1 33 | . . 33 56 . . Level 2 21 | . . 43 13 32 . Level 3 8 | . . . . 39 . Level 4 . | . . . . . . Level 5 . | . . . . . . High Security . | . . . . . . Max Security . | . . . . . . Squads Dispatched 16 | . . 3 5 8 . Investigation 9 | . . . 2 7 . Extermination . | . . . . . . Reinforcement 5 | . . 3 2 . . Assault 1 | . . . . 1 . Garrison 1 | . . . 1 . . Intercept . | . . . . . . Construction Impeded 1 | . . 1 . . . Haulers Reinforced . | . . . . . . Stealth | -11 -10 -9 -8 -7 -7 --------- Run | Scr Mat Mat Mat Fac Low Distress Signals 5 | . . 2 3 . . Communications Jammed 1 | . . . . 1 . Distress Signals 1 | . . . . 1 . Times Spotted 123 | . 9 32 51 25 6 Peak Tracking Total 8 | . 3 8 5 5 6 Tactical Retreats 4 | . . . 3 1 . Traps | -11 -10 -9 -8 -7 -7 ------- Run | Scr Mat Mat Mat Fac Low Traps Triggered . | . . . . . . Indirectly . | . . . . . . Trap Hack Attempts . | . . . . . . Triggered . | . . . . . . Disarmed . | . . . . . . Reprogrammed . | . . . . . . Reused . | . . . . . . Traps Extracted . | . . . . . . Installed . | . . . . . . Triggered . | . . . . . . Machines | -11 -10 -9 -8 -7 -7 ---------- Run | Scr Mat Mat Mat Fac Low Machines Disabled 23 | . . 1 . 20 2 Max in Single Turn 13 | . . 1 . 13 2 Garrison Access 1 | . . . . 1 . Machines Sabotaged . | . . . . . . Garrisons Compromised . | . . . . . . Overloaded Fab Kills . | . . . . . . Fab Network Shutdowns . | . . . . . . Hacking | -11 -10 -9 -8 -7 -7 --------- Run | Scr Mat Mat Mat Fac Low Machines Accessed 22 | . 3 . 11 8 . Terminals 13 | . 3 . 6 4 . Fabricators 2 | . . . . 2 . Repair Stations 2 | . . . 1 1 . Recycling Units 1 | . . . 1 . . Scanalyzers 2 | . . . 2 . . Garrison Access 2 | . . . 1 1 . Total Hacks 68 | . 12 . 24 32 . Successful 42 | . 8 . 15 19 . Failed 26 | . 4 . 9 13 . Catastrophic 5 | . 1 . . 4 . Database Lockouts . | . . . . . . Manual 42 | . 7 . 16 18 1 Terminals 41 | . 12 . 15 14 . Fabricators 13 | . . . . 13 . Repair Stations 4 | . . . 2 2 . Recycling Units 2 | . . . 2 . . Scanalyzers 2 | . . . 2 . . Garrison Access 6 | . . . 3 3 . Terminal Hacks 20 | . 8 . 7 5 . Part Schematic 1 | . . . . 1 . Robot Schematic 2 | . . . . 2 . Robot Analysis 6 | . 4 . 2 . . Level Access Points 2 | . . . 2 . . Branch Access Points 1 | . 1 . . . . Terminal Index 2 | . 1 . . 1 . Unreport Threat 1 | . . . 1 . . Locate Traps 1 | . . . 1 . . Transport Status 2 | . . . 1 1 . Registered Components 1 | . 1 . . . . Zone Layout 1 | . 1 . . . . Fabricator Hacks 9 | . . . . 9 . Network Status 1 | . . . . 1 . Load Schematic 2 | . . . . 2 . Build 6 | . . . . 6 . Repair Station Hacks 2 | . . . 2 . . Scan Component 1 | . . . 1 . . Repair 1 | . . . 1 . . Recycling Unit Hacks 1 | . . . 1 . . Retrieve Components 1 | . . . 1 . . Scanalyzer . | . . . . . . Garrison Access Hacks . | . . . . . . Unauthorized Hacks 29 | . . . 15 14 . Terminals 6 | . . . 3 3 . Track 2 | . . . 2 . . Botnet 3 | . . . 1 2 . Detonate 1 | . . . . 1 . Fabricators 2 | . . . . 2 . Siphon 1 | . . . . 1 . Download 1 | . . . . 1 . Repair Stations . | . . . . . . Recycling Units . | . . . . . . Scanalyzers 2 | . . . 2 . . Extract 2 | . . . 2 . . Garrison Access . | . . . . . . Data Cores Recovered 1 | . . . 1 . . Used 1 | . . . 1 . . Hacking Detections 16 | . 3 . 6 7 . Full Trace Events 7 | . . . 1 6 . Feedback Events 2 | . . . 1 1 . Corruption 2 | . . . 1 1 . Feedback Blocked . | . . . . . . Robot Schematics Acquired 2 | . . . . 2 . Robots Built 6 | . . . . 6 . Matter 591 | . . . . 591 . Time 314 | . . . . 314 . Total Robot Build Rating 15 | . . . . 15 . Part Schematics Acquired 6 | . . . 5 1 . Parts Built . | . . . . . . Matter . | . . . . . . Time . | . . . . . . Total Part Build Rating . | . . . . . . Parts Repaired 1 | . . . 1 . . Time 44 | . . . 44 . . Parts Recycled . | . . . . . . Recycled Matter . | . . . . . . Retrieved Matter . | . . . . . . Retrieved Components 10 | . . . 10 . . Parts Scanalyzed . | . . . . . . Part Schematics Acquired . | . . . . . . Parts Damaged . | . . . . . . Bothacking | -11 -10 -9 -8 -7 -7 ------------ Run | Scr Mat Mat Mat Fac Low Used RIF Installer . | . . . . . . Robots Hacked . | . . . . . . Non-combat . | . . . . . . Combat . | . . . . . . Robot Hacks Applied . | . . . . . . Relay Couplers Released 3 | . . . . 3 . Machine Destruction 3 | . . . . 3 . Robots Rewired . | . . . . . . Allies Hacked . | . . . . . . Hacks Repelled . | . . . . . . Allies | -11 -10 -9 -8 -7 -7 -------- Run | Scr Mat Mat Mat Fac Low Total Allies 6 | . . . . 6 . Largest Group 6 | . . . . 6 . Highest-Rated Group 99 | . . . . 99 . Highest-Rated Ally 18 | . . . . 18 . Total Orders . | . . . . . . Ally Attacks 33 | . . . . 33 . Total Damage 541 | . . . . 541 . Kills 7 | . . . . 7 . Allies Corrupted . | . . . . . . Allies Melted . | . . . . . . Intel | -11 -10 -9 -8 -7 -7 ------- Run | Scr Mat Mat Mat Fac Low Robot Analysis Total 6 | . 4 . 2 . . Derelict Logs Recovered . | . . . . . . Drone Launches . | . . . . . . Drone Recoveries . | . . . . . . Exploration | -11 -10 -9 -8 -7 -7 ------------- Run | Scr Mat Mat Mat Fac Low Turns Passed 4221 | 97 322 809 2003 891 99 Spaces Moved 1929 | 48 157 350 883 439 52 Core 20 | 20 . . . . . Treads 1909 | 28 157 350 883 439 52 Legs . | . . . . . . Wheels . | . . . . . . Hover . | . . . . . . Flight . | . . . . . . Fastest Speed 50 | 50 160 160 160 160 160 Average Speed 159 | 114 160 160 161 160 160 Slowest Speed 180 | 160 160 160 180 160 160 Overloaded Moves . | . . . . . . Propulsion Burnouts . | . . . . . . Robots Hopped . | . . . . . . Cave-ins Triggered . | . . . . . . Exploration Rate (%) 23 | 4 34 29 56 12 5 Regions Visited 5 Branch Regions 1 Pre-discovered Areas . | . . . . . . Known Exits Taken 1 | . . . 1 . . Unknown Exits Taken 4 | 1 1 1 . 1 . Scrap Searched . | . . . . . . Spaces Dug 2 | . . . . 2 . Terrain Destroyed 156 | . . . 18 138 . Melee . | . . . . . . Projectile 17 | . . . . 17 . AOE 139 | . . . 18 121 . Actions | -11 -10 -9 -8 -7 -7 --------- Run | Scr Mat Mat Mat Fac Low Total 2533 | 70 192 446 1234 530 61 Wait 195 | . . . 193 2 . Move 1924 | 47 156 349 882 438 52 Hop . | . . . . . . Pick Up 52 | 6 6 9 17 11 3 Fast Attach . | . . . . . . Attach 31 | 6 5 4 8 7 1 Detach 3 | . 1 . . 2 . Swap 18 | . . 2 9 7 . Drop 29 | . 4 4 11 8 2 Fire 278 | 11 19 77 114 54 3 Melee . | . . . . . . Ram . | . . . . . . Kick . | . . . . . . Crush 3 | . 1 1 . 1 . Escape Stasis . | . . . . . . Rewire . | . . . . . . Trap . | . . . . . . Miscellaneous . | . . . . . . Route ------- -11/Scrapyard -10/Materials (discovered 3 exits: [*Mat] / Min x2) -9/Materials -8/Materials (discovered 3 exits: *Fac x3) -7/Factory (discovered 2 exits: [*Fac] / *Low) -7/Lower Caves History --------- Turn | Location | Event 2 | -11/Scrapyard | Met Revision 17 8 | -11/Scrapyard | Discovered new exit (range 16) 98 | -11/Scrapyard | Entered Materials 152 | -10/Materials | Identified exit to Mines 315 | -10/Materials | Build established: Mutant 394 | -10/Materials | Discovered new exit (range 7) 420 | -10/Materials | Entered another Materials area 420 | -9/Materials | Evolved 2 slots: Utility x2 810 | -9/Materials | Discovered new exit (range 19) 1229 | -9/Materials | Entered another Materials area 1229 | -8/Materials | Evolved 2 slots: Utility x1, Weapon x1 1498 | -8/Materials | Destroyed 11 combat bots 1605 | -8/Materials | Identified exit to Factory 2230 | -8/Materials | Build established: Tank 2661 | -8/Materials | Destroyed 8 combat bots 2932 | -8/Materials | Repaired Flak Gun 3177 | -8/Materials | Garrison activated, responded to threat 3232 | -8/Materials | Entered Factory 3232 | -7/Factory | Evolved 2 slots: Utility x2 3523 | -7/Factory | Discovered new exit (range 16) 3535 | -7/Factory | Build established: Skirmisher 3656 | -7/Factory | Discovered new exit (range 19) 3953 | -7/Factory | Fabricated G-47 Trooper? 3979 | -7/Factory | Fabricated L-31 Rogue? 4123 | -7/Factory | Entered Lower Caves 4128 | -7/Lower Caves | Acquired the password to a Derelict Tinkerer's latest research 4139 | -7/Lower Caves | Found Prototype Special Weapon 4141 | -7/Lower Caves | Identified Molecular Deconstructor 4218 | -7/Lower Caves | Caught by Unaware searching for contraband prototypes 4218 | -7/Lower Caves | Caught by Unaware searching for contraband prototypes 4222 | -7/Lower Caves | Self-destructed Last Messages --------------- 04156_ Concrete disintegrates. 04157_ Wall disintegrates. 04157_ Concrete disintegrates. 04157_ Earth destabilizing. 04160_ Earth disintegrates. 04160_ Wall destabilizing. 04161_ Wall disintegrates. 04161_ Wall destabilizing. 04208_ PUBLIC SERVICE ANNOUNCEMENT: Unaware incursion detected. Likely classification: Search and Destroy. And maybe Retrieve. Something like that, yeah. 04216_ Slug penetrates Wall. 04218_ X-62 Marksman: "CONFIRMED SUSPICIOUS DERELICT. COMMENCE PROTOTYPE CONTRABAND SEARCH." 04218_ P-70 Sage: "CONFIRMED SUSPICIOUS DERELICT. COMMENCE PROTOTYPE CONTRABAND SEARCH." 04218_ Entropy package works its way towards P-70 Sage core. 04219_ Penetrated by Slug. 04222_ P-70 Sage core destabilizing. 04222_ Tractor Beam destroyed. Map ----- +----------------------------------------------------+ | #????###########?##?####?##?###??????????????????? | | ####??######?####?#######?#?#?##?????????????????? | | ########?####?#####??#?########??????????????????? | | ########?#?#####?#?####?###?##?###???????????????? | | #?#################?##??############?????????????? | | ###?##########?##########??####?#?#??????????????? | | ####?###?#########??#########?###?#??????????????? | | #########?##?## ######## ### #???????????????? | | ?####??####### ? ??#????????????? | | #####?###"""# ? #?#????????????? | | ##?#####" ### ### ?##?????????????? | | ?##?#X # ####? ?## ??? ????????????? | | ? ##?## # ## #### ## #? ?? ??????????? | | ? ##### # ## ##### ? ? ? ??? ???????? | | ######### x ##### ? ##?#? ???????? | | ######## xx ##?## ? ??#?##?#???????? | | ?? #####?### hh #### ? #?#???????????? | | ? ###########% ### ?####?#?###???? ??????? | | ? ? ? ?##### p ########## ###?##???? ?????? | | ## ? ##### #######?## #?#???##????????? | | ?### #?#### ###?##### ##?# ? ?# ??????? | | ? ? ??########## ###?? ?##? ???? ?????? | | ?########## ### ?##? ? ????? ????? | | ? #######?## ### ####??????????????? | | ? #?######## ##? ###? ??#?? ??????? | | ? ####?########### @##? ###?# ?#? ????????? | | ?? ##############?#### ###? ?#?#???? ? #??????? | | ####### ##?#######?#### #?# ?? ??#?? ????????? | | ?#??## ####### ##?? ?#???? #???????? | | #?###?? ####?? #?#? ???#?? ??????????? | | ?##?#?? ##??? ## ###?# ?#? ? ?????????? | | ???#? ? ## ?## #??# ? ???? ??? ???????? | | ????? ? ?? ??# ##????? ?#?#?? ?? ?#?????? | | ?????? ? ? ? ?#?? ????#####??????????? | | ??????????? ?? ? ? ? ? #????#??????? | | ??????? #? ?? ? ??? ??? ? ? ????##??????? | | ??????? ?? ? ?? ? ? ??? ?? ????? ??#????????? | | ???????? ? ?????? ??? ?? ??? ? #????#??????????? | | ??????????? ????? ? ? ? ??# ??????#??????????? | | ??????????? ?#?#??? ??#????? ??#??? ??????????? | | ?????????? ???##???? ??#### ??? ? ??????????? | | ???????????????#?#??# ????### ?????????????????? | | ?????????????????##?#? ????????? ? ?????????????? | | ?????????????????#?????????#????#????????????????? | | ??????????????????????#???#?#????????????????????? | | ?????????????????????#???????????????????????????? | | ?????????????????????????????????????????????????? | | ?????????????????????????????????????????????????? | | ?????????????????????????????????????????????????? | | ?????????????????????????????????????????????????? | +----------------------------------------------------+ Best States ------------- Heat Dissipation 56 Coolant Potential 65 Energy Generation 16 Energy Capacity 290 Matter Stores 500 Matter Capacity 500 Sight Range 20 Terrain Scan Range 20 Terrain Scan Density 210 Jamming Range 8 Armor Coverage 225 Resistance: KI 20 Resistance: TH 20 Resistance: EX 20 Resistance: EM 20 Resistance: I 20 Resistance: S 20 Resistance: P 20 Evasion (%) 50 Recoil Reduction 2 Offensive Hacking 10 Item Schematics ----------------- Insulated Plating | -8/Materials | Extracted Melee Analysis Suite | -8/Materials | Extracted Lrg. Battery | -8/Materials | Extracted Targeting Computer | -8/Materials | Extracted Imp. Treads | -8/Materials | Extracted Adv. Treads | -7/Factory | Hacked Robot Schematics ------------------ L-31 Rogue | -7/Factory | Hacked G-47 Trooper | -7/Factory | Hacked Fabricated ------------ G-47 Trooper | x3 | -7/Factory L-31 Rogue | x3 | -7/Factory Alien Tech Used ----------------- None Achievements -------------- None Challenges ------------ None Game ------ Seed ArchitectTractorUnit Manual? 0 Play Time 00:27:58 Cumulative 224.8 hours Start 2020.08.05 @ 20:27:01 End 2020.08.05 @ 20:54:01 Sessions 1 Manual Loads 0 Difficulty Adventurer Special Mode None Game No. 88 Rogue 0 Adventurer 88 Explorer 0 Win Type - Total 1 Types 1/0/0/0/0/0/0 Lore% 33 Gallery% 58 Achievement% 44 Wizard Run 0 Options --------- ASCII 0 Keyboard 0 Movement Numpad Keybinds 0 Fullscreen 0 Font 12/Smallcaps Map View 83x54 Tactical HUD 1 Map Filters NONE Filters NONE Steam X RUN: 2af5f6da-7f4d-475a-a1ae-bd47e14c94a5